{"text_format":"2","workbook":"xlsx","n_sheets":1,"sheets":["Ascensores"],"not_rendered":{"charts":0,"images":0,"macros":0,"external_links":0,"defined_names":2,"comments":0,"pivot_tables":0},"unopened":[],"bounds":{"document_bytes":16777216,"sheet_cells":100000,"run_cost":"one","rows_first":2000,"rows_last":500,"rows_between":2000,"halvings":0,"cell_chars":16384,"cell_head_chars":4096},"cells_cut":0,"cells_raw":0,"read":"whole","date_system":"1900"}

{"sheet":"Ascensores","index":0,"n_rows":107,"n_cols":7,"rows_kept":107,"cut":false,"hidden":false,"merged":[[107,1,107,4]]}
[null,"CORTE SUPREMA DE JUSTICIA - PROGRAMA DE LAS NACIONES UNIDAS PARA EL DESARROLLO"]
[null,"\"PROGRAMA DE INFRAESTRUCTURA EDILICIA CSJ - PNUD\""]
[null,"IAL/14311/212/2023 - MODERNIZACION DE LOS ASCENSORES DE LA TORRE SUR DEL PALACIO DE JUSTICIA DE ASUNCION."]
[]
[null,"PROVISION Y MONTAJE DE ASCENSORES"]
[null,"Ítem","Descripción de Rubros","Un","Cant.","Precio Unit.","Precio Total"]
[{"$nulls":5},"Gs.","Gs."]
[null,"1. EQUIPOS"]
[null,"1 - Ascensores para el Publico"]
[null,"1.1.1","Provisión de ascensor para 1,500Kg / 20 personas, velocidad 1,6m/segundo, 12 paradas, 12 niveles (4.5m. por nivel). Componentes: motor; módulo de control; cabina; guías; cabos; contrapesos; puertas; marcos y umbrales; software de monitoreo; accesorios","un",4,null,{"$f":"+E10*F10","v":0}]
[null,"1.1.2","Intercomunicador, entre cabina y sala de control","un",4,null,{"$f":"+E11*F11","v":0}]
[null,"1.1.3","Sistema de proteccion electrica, supresor de sobretensiones transitorias y de armonicos para cerebro electronico, Tipo SineTamer.","un",4,null,0]
[null,"1.1.4","Kit de repuestos","gl",1,null,0]
[null,"2 - Ascensor para Jueces y Funcionarios",{"$nulls":4},0]
[null,"2.1.1","Provisión de ascensor para 1,500Kg / 20 personas, velocidad 1,6m/segundo, 13 paradas, 13 niveles (4.5m. por nivel). Componentes: motor; módulo de control; cabina; guías; cabos; contrapesos; puertas; marcos y umbrales; software de monitoreo; accesorios","un",2,null,0]
[null,"2.1.2","Intercomunicador, entre cabina y sala de control","un",2,null,0]
[null,"2.1.3","Sistema de proteccion electrica, supresor de sobretensiones transitorias y de armonicos para cerebro electronico, Tipo SineTamer.","un",2,null,0]
[null,"2.1.4","Kit de repuestos","gl",1,null,0]
[null,"3 - Ascensor de Servicio",{"$nulls":4},{"$f":"+E19*F19","v":0}]
[null,"3.1.1","Provisión de ascensor para 1,500Kg / 20 personas, velocidad 1,6m/segundo, 13 paradas, 13 niveles (4.5m. por nivel). Componentes: motor; módulo de control; cabina; guías; cabos; contrapesos; puertas; marcos y umbrales; software de monitoreo; accesorios","un",1,null,0]
[null,"3.1.2","Intercomunicador, entre cabina y sala de control","un",1,null,0]
[null,"3.1.3","Sistema de proteccion electrica, supresor de sobretensiones transitorias y de armonicos para cerebro electronico, Tipo SineTamer.","un",1,null,0]
[null,"3.1.4","Kit de repuestos","gl",1,null,0]
[null,"4 - Ascensor para Ministros en Salon",{"$nulls":4},0]
[null,"4.1.1","Provisión de ascensor sin sala de maquinas para 600Kg / 8 personas, velocidad 1,6m/segundo, 3 paradas, 4 niveles (4.5m. por nivel). Componentes: motor; módulo de control; cabina; guías; cabos; contrapesos; puertas; marcos y umbrales; software de monitoreo; accesorios","un",1,null,0]
[null,"4.1.2","Intercomunicador, entre cabina y sala de control","un",1,null,0]
[null,"4.1.3","Sistema de proteccion electrica, supresor de sobretensiones transitorias y de armonicos para cerebro electronico, Tipo SineTamer.","un",1,null,0]
[null,"4.1.4","Kit de repuestos","gl",1,null,0]
[null,"2. MATERIALES, MONTAJE Y PUESTA EN MARCHA"]
[null,"1 - Ascensores para el Publico"]
[null,"2.1.1","Desmontaje de Ascensores, motores de induccion AC/DC y tableros electromecanicos existentes. Ademas de la disposicion final de los mismos","un",4,null,{"$f":"+E31*F31","v":0}]
[null,"2.1.2","Trabajos de adecuación de las estructuras (elementos metálicos adicionales a la caja; perforaciones en losas; ganchos)","un",4,null,0]
[null,"2.1.3","Montaje e instalacion de equipos y accesorios por piso y por ascensor.","un",{"$f":"12*4","v":48},null,0]
[null,"2.1.4","Montaje de guías, cabina y accesorios.","un",4,null,0]
[null,"2.1.5","Montaje de accesorios en pisos, soportes y puertas de piso.","un",{"$f":"+E33","v":48},null,0]
[null,"2.1.6","Puesta en marcha de los ascensores","un",4,null,0]
[null,"3 - Ascensor para Jueces y Funcionarios",{"$nulls":4},0]
[null,"3.1.1","Desmontaje de Ascensores, motores de induccion AC/DC y tableros electromecanicos existentes. Ademas de la disposicion final de los mismos","un",2,null,0]
[null,"3.1.2","Trabajos de adecuación de las estructuras (elementos metálicos adicionales a la caja; perforaciones en losas; ganchos)","un",2,null,0]
[null,"3.1.3","Montaje e instalacion de equipos y accesorios por piso y por ascensor.","un",{"$f":"13*2","v":26},null,0]
[null,"3.1.4","Montaje de guías, cabina y accesorios.","un",2,null,0]
[null,"3.1.5","Montaje de accesorios en pisos, soportes y puertas de piso.","un",{"$f":"+E40","v":26},null,0]
[null,"3.1.6","Puesta en marcha de los ascensores","un",2,null,0]
[null,"4 - Ascensor de Servicio",{"$nulls":4},{"$f":"+E44*F44","v":0}]
[null,"4.1.1","Desmontaje de Ascensores, motores de induccion AC/DC y tableros electromecanicos existentes. Ademas de la disposicion final de los mismos","un",1,null,0]
[null,"4.1.2","Trabajos de adecuación de las estructuras (elementos metálicos adicionales a la caja; perforaciones en losas; ganchos)","un",1,null,0]
[null,"4.1.3","Montaje e instalacion de equipos y accesorios por piso y por ascensor.","un",{"$f":"13*1","v":13},null,0]
[null,"4.1.4","Montaje de guías, cabina y accesorios.","un",2,null,0]
[null,"4.1.5","Montaje de accesorios en pisos, soportes y puertas de piso.","un",{"$f":"+E47","v":13},null,0]
[null,"4.1.6","Puesta en marcha de los ascensores","un",2,null,0]
[null,"5 - Ascensor para Ministros en Salon",{"$nulls":4},{"$f":"+E51*F51","v":0}]
[null,"5.1.1","Desmontaje de Ascensores, motores de induccion AC/DC y tableros electromecanicos existentes. Ademas de la disposicion final de los mismos","un",1,null,0]
[null,"5.1.2","Trabajos de adecuación de las estructuras (elementos metálicos adicionales a la caja; perforaciones en losas; ganchos)","un",1,null,0]
[null,"5.1.3","Adecuación de instalación eléctrica. Incluye provisión y montaje de canaletas de chapa, tableros, interruptores eléctricos y conductores en piso, desde puesto de transformacion en SS2 a sala de maquinas de ascensores, Iluminacion interna y tomas electricas.","un",1,null,0]
[null,"5.1.4","Montaje e instalacion de equipos y accesorios por piso y por ascensor.","un",{"$f":"1*1","v":1},null,0]
[null,"5.1.5","Montaje de guías, cabina y accesorios.","un",2,null,0]
[null,"5.1.6","Montaje de accesorios en pisos, soportes y puertas de piso.","un",{"$f":"+E55","v":1},null,0]
[null,"5.1.7","Puesta en marcha del ascensor","un",2,null,0]
[null,"6 -Instalacion Electrica"]
[null,"6.1","TABLERO SECCIONAL ASCENSORES - TS Asc \n(Provision y montaje de los componentes citados mas abajo incluidos los materiales necesarios)."]
[null,"6.1.1","Tablero metálico de Adosar Protocolizado LxAxh 150A Emergencia. Incluye, juego de barras de cobre RST-N+T Emergencia, accesorios de montaje para correcto funcionamiento.  ","un",1,null,{"$f":"+E61*F61","v":0}]
[null,"6.1.2","Alimentador desde el tablero general de emergencia en SS2 al TS Asc con conductor XLPE 4x1x35 mm2 + 1x16 mm2 (t) (considerar la provision de  sujeciones verticales y horizontales en lugares requeridos) ver plano AS04","ml",150,null,0]
[null,"6.1.3","Interruptor Termomagnetico 3x150 A - corriente de ruptura min 22kA","un",2,null,0]
[null,"6.1.4","Proteccion contra transitorios ","un",1,null,0]
[null,"6.1.5","Interruptores termomagnetico Tripolar 3x25 A","un",7,null,0]
[null,"6.1.6","Interruptores termomagnetico Monopolar 1x16 A","un",10,null,0]
[null,"6.2","ILUMINACION, TOMACORRIENTES, ALIMENTACIÓN CLIMATIZACIÓN  - TABLERO SECCIONAL EMERGENCIA ASCENSORES - TSE Asc "]
[null,null,"ILUMINACION EN CAJA DE ASCENSORES - Rosario de luces para manteniemiento"]
[null,"6.2.1","Conductor 3x2,5 mm2 XLPE F-N","ml",300,null,{"$f":"+E69*F69","v":0}]
[null,"6.2.2","Caja de derivacion cuadrangular 20x20","un",100,null,0]
[null,"6.2.3","Caja de conexion octogonal de plastico ","un",100,null,0]
[null,"6.2.4","Electroducto corrugado antillama 3/4''","ml",300,null,0]
[null,"6.2.5","Artefacto de Iluminación APLIQUE LED DE ADOSAR A PARED 4W 240LM 3000K","un",100,null,0]
[null,"6.2.6","Accesorios de montaje, alambres, soportes metalicos segun detalles. ","gl",1,null,0]
[null,null,"TOMACORRIENTE EN CAJA DE ASCENSORES - Rosario de tomacorrientes para manteniemiento"]
[null,"6.2.7","Conductor 3x4 mm2 XLPE F-N","ml",100,null,{"$f":"+E76*F76","v":0}]
[null,"6.2.8","Caja de derivacion cuadrangular 20x20","un",5,null,0]
[null,"6.2.9","Caja de conexion octogonal de plastico ","un",5,null,0]
[null,"6.2.10","Electroducto corrugado antillama 3/4''","ml",100,null,0]
[null,"6.2.11","Tomacorriente Americano c/ Tierra 10 A - FN+T","un",{"$f":"+E78","v":5},null,0]
[null,"6.2.12","Accesorios de montaje, alambres, soportes metalicos segun detalles. ","gl",1,null,0]
[null,null,"EQUIPOS, ASCENSORES.  "]
[null,"6.2.13","Bandeja portacable ZI 400 mm","ml",30,null,0]
[null,"6.2.14","Conductor 4x6 mm2 XLPE F-N","ml",50,null,{"$f":"+E84*F84","v":0}]
[null,"6.2.15","Conductor 1x4 mm2 Multifilar T - Verde/Amarillo ","ml",50,null,0]
[null,"6.2.16","Caja de conexion octogonal de plastico ","un",10,null,0]
[null,"6.2.17","Electroducto corrugado antillama 3/4''","ml",{"$f":"+E85","v":50},null,0]
[null,"6.2.18","Accesorios de montaje, prensacables PG con tuerca, alambres, soportes metalicos segun detalles. ","gl",1,null,0]
[null,"7 -Sala de Control y Otros",{"$nulls":4},0]
[null,"7.1.1","Provisión e instalación de computadora del tipo TODO en UNO, teclado y mouse, capacidad necesaria para el funcionamiento del software correspondiente. El Montaje de la misma será en sala de control piso 9 de la torre norte. Se deberá prever todo lo necesario para el correcto funcionamiento, alimentación eléctrica, cables, interconexión y demás.","gl",1,null,0]
[null,"7.1.2","Instalación de intercomunicadores entre los ascensores nuevos y la sala de control piso 9 de la torre norte.","un",8,null,0]
[null,"7.1.3","Cableado estructurado en cable viajero para conexión de cámara de la cabina. Cada uno de ellos se conectara al switch existente que se encuentra en uso, piso 10 T.S.","un",8,null,0]
[null,"7.1.4","Manuales de operación y mantenimiento en idioma español","gl",1,null,0]
[null,"7.1.5","Capacitación a funcionarios para operación y control del sistema","gl",1,null,0]
[null,"8 - Sala de Máquinas"]
[null,"8.1.1","Remoción de pisos existentes y disposición final","m2",106,null,{"$f":"+E96*F96","v":0}]
[null,"8.1.2","Tratamiento de regularización de carpeta de hormigón para piso. Esp. Min: 5cm","m2",189,null,{"$f":"+E97*F97","v":0}]
[null,"8.1.3","Tratamiento de regularización de revoque en paredes","m2",268,null,{"$f":"+E98*F98","v":0}]
[null,"8.1.4","Terminación con pintura epóxica en pisos, color a definir","m2",189,null,0]
[null,"8.1.5","Terminación con pintura epóxica en muros, color a definir","m2",268,null,0]
[null,"8.1.6","Terminación con pintura acrílica en losa, color a definir","m2",186,null,{"$f":"+E101*F101","v":0}]
[null,"8.1.7","Escalera metálica, según detalle.","un",5,null,0]
[null,"9 - VARIOS"]
[null,"9.1.1","Readecuaciones en palieres de revestidos de mármol en baldosa afectados por desmontaje de cabinas existentes. Altura de revestido de 10cm ","ml",540,null,{"$f":"+E104*F104","v":0}]
[null,"9.1.2","Readecuaciones en puertas de acceso de ascensores, revestidos de marmol en baldosa, por desmontaje de cabinas existentes. Altura de revestido de 10cm. Considerar 6,2 ml por puerta","un",90,null,{"$f":"+E105*F105","v":0}]
[]
[null,"TOTAL PROVISION Y MONTAJE DE ASCENSORES",{"$nulls":4},{"$f":"SUM(G10:G106)","v":0}]